fUST/lending_fUST_20250920
["ID","MTS","AMOUNT","RATE_DAILY","PERIOD"]
[386551526,1758382126356,900.87131548,0.00019063,7]
[386551529,1758382147513,924.48963952,0.00020581,2]
[386551530,1758382157277,315.44818134,0.00019724,2]
[386551531,1758382157372,358.86159066,0.00019724,2]
[386551534,1758382170956,215.54,0.00019218,2]
[386551535,1758382171414,431.09,0.00020133,2]
[386551538,1758382231634,1878.62438861,0.000199,2]
[386551578,1758382232718,-462.228,0.0002063,2]
[386551582,1758382232743,-31.81677262,0.0002063,2]
[386551584,1758382232752,-300.0,0.00020639,2]
[386551586,1758382232760,-287.0,0.00020639,2]
[386551588,1758382232769,-1200.0,0.00020639,2]
[386551590,1758382232778,-1303.2356753,0.0002064,2]
[386551592,1758382232788,-4836.0,0.0002064,2]
[386551594,1758382232797,-518.46599488,0.000207,2]
[386551596,1758382232808,-3595.73,0.00020727,10]
[386551599,1758382232817,-5177.86,0.00020728,10]
[386551602,1758382232826,-480.0,0.00020728,2]
[386551605,1758382232835,-223.97291358,0.00020728,2]
[386551607,1758382232845,-480.0,0.00020728,2]
[386551609,1758382232854,-486.15244394,0.00020728,2]
[386551611,1758382232867,-637.51699645,0.00020729,2]
[386551613,1758382232877,-423.87270485,0.00020729,2]
[386551615,1758382232886,-500.0,0.00020729,2]
[386551617,1758382232896,-235.10288692,0.00020729,2]
[386551619,1758382232906,-500.0,0.00020729,2]
[386551621,1758382232915,-358.19872953,0.00020729,2]
[386551623,1758382232925,-500.0,0.00020729,2]
[386551625,1758382232934,-500.0,0.00020729,2]
[386551626,1758382232943,-500.0,0.00020729,2]
[386551629,1758382232953,-500.0,0.00020729,2]
[386551631,1758382232962,-500.0,0.00020729,2]
[386551632,1758382232972,-500.0,0.00020729,2]
[386551635,1758382232982,-500.0,0.00020729,2]
[386551637,1758382232991,-500.0,0.00020729,2]
[386551639,1758382233001,-500.0,0.00020729,2]
[386551641,1758382233010,-500.0,0.00020729,2]
[386551642,1758382233020,-500.0,0.00020729,2]
[386551644,1758382233030,-500.0,0.00020729,2]
[386551646,1758382233040,-500.0,0.00020729,2]
[386551648,1758382233050,-500.0,0.00020729,2]
[386551650,1758382233060,-500.0,0.00020729,2]
[386551652,1758382233069,-500.0,0.00020729,2]
[386551654,1758382233079,-500.0,0.00020729,2]
[386551656,1758382233089,-339.95910547,0.00020729,2]
[386551658,1758382233098,-500.0,0.00020729,2]
[386551660,1758382233108,-500.0,0.00020729,2]
[386551662,1758382233117,-500.0,0.00020729,2]
[386551664,1758382233127,-500.0,0.00020729,2]
[386551666,1758382233137,-500.0,0.00020729,2]
[386551668,1758382233147,-500.0,0.00020729,2]
[386551670,1758382233156,-500.0,0.00020729,2]
[386551672,1758382233166,-500.0,0.00020729,2]
[386551674,1758382233174,-500.0,0.00020729,2]
[386551676,1758382233183,-500.0,0.00020729,2]
[386551678,1758382233193,-500.0,0.00020729,2]
[386551680,1758382233203,-600.0,0.00020729,2]
[386551682,1758382233212,-500.0,0.00020729,2]
[386551684,1758382233222,-50000.0,0.00020729,2]
[386551686,1758382233232,-494.24569643,0.0002073,2]
[386551688,1758382233242,-480.0,0.0002073,2]
[386551690,1758382233252,-482.07983135,0.0002073,2]
[386551692,1758382233262,-480.0,0.0002073,2]
[386551693,1758382233273,-557.87,0.0002073,2]
[386551694,1758382233282,-1490.78,0.0002073,2]
[386551695,1758382233292,-480.0,0.0002073,2]
[386551696,1758382233302,-480.0,0.00020732,2]
[386551697,1758382233312,-480.0,0.00020732,2]
[386551698,1758382233321,-4314.88,0.00020732,10]
[386551699,1758382233331,-592.44,0.00020734,3]
[386551700,1758382233341,-2369.75,0.00020735,3]
[386551701,1758382233351,-1184.88,0.00020735,3]
[386551702,1758382233361,-296.22,0.00020735,3]
[386551703,1758382233372,-888.67,0.00020735,3]
[386551704,1758382233383,-483.45870595,0.00020737,2]
[386551705,1758382233393,-1514.46,0.00020737,2]
[386551706,1758382233403,-480.0,0.00020737,2]
[386551707,1758382233414,-512.98,0.00020737,2]
[386551708,1758382233424,-1176.86,0.00020737,2]
[386551709,1758382233433,-1334.54,0.00020737,2]
[386551710,1758382233443,-480.0,0.00020737,2]
[386551711,1758382233453,-1408.18,0.00020737,2]
[386551712,1758382233463,-544.12,0.00020737,2]
[386551713,1758382233472,-480.0,0.00020737,2]
[386551714,1758382233482,-568.66,0.00020737,2]
[386551715,1758382233491,-827.68,0.00020737,2]
[386551716,1758382233501,-480.0,0.00020737,2]
[386551717,1758382233511,-1306.45648764,0.00020737,2]
[386551718,1758382233520,-563.64,0.00020737,2]
[386551719,1758382233530,-480.0,0.00020738,2]
[386551720,1758382233539,-77.34866869,0.00020738,2]
[386551721,1758382233552,-370.0,0.00020738,2]
[386551736,1758382235118,273.16558986,0.00019736,2]
[386551737,1758382235217,7115.89402073,0.00019736,2]
[386551738,1758382235315,10000.01,0.00019736,2]
[386551739,1758382235414,10000.01,0.00019736,2]
[386551740,1758382235512,7408.53537461,0.00019736,2]
[386551761,1758382238609,-326.75342642,0.00020728,2]
[386551762,1758382238622,-153.24657358,0.00020728,2]
[386551763,1758382238632,-480.0,0.00020737,2]
[386551764,1758382238641,-137.44133131,0.00020738,2]
[386551765,1758382238650,-342.36949776,0.00020738,2]
[386551766,1758382238715,-176.32050224,0.00020738,2]
[386551767,1758382238724,-304.88705674,0.00020738,2]
[386551768,1758382238744,-178.19294326,0.00020738,2]
[386551769,1758382238753,-480.0,0.00020738,2]
[386551770,1758382238763,-480.0,0.00020738,2]
[386551771,1758382238772,-480.0,0.00020738,2]
[386551772,1758382238781,-667.44224913,0.00020739,3]
[386551773,1758382238790,-480.0,0.00020739,2]
[386551774,1758382238799,-490.49,0.00020739,2]
[386551775,1758382238811,-480.0,0.00020739,2]
[386551776,1758382238820,-480.0,0.00020739,2]
[386551777,1758382238830,-480.0,0.00020739,2]
[386551778,1758382238839,-485.25,0.00020739,2]
[386551779,1758382238849,-480.0,0.00020739,2]
[386551780,1758382238859,-870.99,0.00020739,2]
[386551781,1758382238873,-480.0,0.00020739,2]
[386551782,1758382238887,-313.90717,0.00020739,2]
[386551783,1758382238896,-509.89,0.00020739,2]
[386551784,1758382238905,-480.0,0.00020739,2]
[386551785,1758382238915,-480.0,0.00020739,2]
[386551786,1758382238924,-1162.06,0.00020739,2]
[386551787,1758382238935,-480.0,0.00020739,2]
[386551788,1758382238945,-480.0,0.00020739,2]
[386551789,1758382238954,-480.0,0.00020739,2]
[386551790,1758382238963,-480.0,0.00020739,2]
[386551791,1758382238973,-1448.45,0.00020739,2]
[386551792,1758382238982,-480.0,0.00020739,2]
[386551793,1758382238991,-480.0,0.00020739,2]
[386551794,1758382239000,-480.0,0.00020739,2]
[386551795,1758382239011,-349.99579611,0.00020739,2]
[386551796,1758382239020,-1036.43,0.00020741,2]
[386551797,1758382239029,-480.0,0.00020741,2]
[386551798,1758382239039,-1471.08,0.00020741,2]
[386551799,1758382239048,-480.0,0.00020742,2]
[386551800,1758382239060,-481.6995829,0.00020742,2]
[386551801,1758382239070,-291.24540124,0.00020742,2]
[386551802,1758382239079,-482.49647393,0.00020742,2]
[386551803,1758382239089,-480.0,0.00020742,2]
[386551804,1758382239098,-482.39237374,0.00020742,2]
[386551805,1758382239108,-480.0,0.00020742,2]
[386551806,1758382239118,-470.74766507,0.00020742,2]
[386551807,1758382239127,-476.8935859,0.00020742,2]
[386551808,1758382239136,-480.0,0.00020742,2]
[386551809,1758382239145,-480.0,0.00020742,2]
[386551810,1758382239155,-480.0,0.00020742,2]
[386551811,1758382239164,-208.86640602,0.00020742,2]
[386551812,1758382239174,-480.0,0.00020742,2]
[386551813,1758382239183,-480.0,0.00020742,2]
[386551814,1758382239193,-480.0,0.00020742,2]
[386551815,1758382239203,-481.56519056,0.00020742,2]
[386551816,1758382239212,-480.0,0.00020742,2]
[386551817,1758382239222,-480.0,0.00020742,2]
[386551818,1758382239231,-481.27900134,0.00020742,2]
[386551819,1758382239241,-482.4379435,0.00020742,2]
[386551820,1758382239250,-480.0,0.00020742,2]
[386551821,1758382239259,-477.40464735,0.00020742,2]
[386551822,1758382239271,-480.0,0.00020742,2]
[386551823,1758382239280,-482.23196307,0.00020742,2]
[386551824,1758382239289,-182.41797995,0.00020742,2]
[386551825,1758382239299,-480.0,0.00020742,2]
[386551826,1758382239309,-469.12736201,0.00020742,2]
[386551827,1758382239319,-358.37788061,0.00020742,2]
[386551828,1758382239328,-480.0,0.00020742,2]
[386551829,1758382239337,-480.0,0.00020742,2]
[386551830,1758382239347,-480.0,0.00020742,2]
[386551831,1758382239356,-480.0,0.00020742,2]
[386551832,1758382239366,-480.0,0.00020742,2]
[386551833,1758382239376,-480.0,0.00020742,2]
[386551834,1758382239385,-946.85,0.00020742,2]
[386551835,1758382239395,-480.0,0.00020742,2]
[386551836,1758382239405,-480.0,0.00020742,2]
[386551837,1758382239414,-590.24,0.00020742,2]
[386551838,1758382239423,-480.0,0.00020742,2]
[386551839,1758382239434,-2436.08,0.00020742,2]
[386551840,1758382239443,-1301.36,0.00020742,2]
[386551841,1758382239453,-480.0,0.00020742,2]
[386551842,1758382239462,-500.0,0.00020742,2]
[386551843,1758382239472,-500.0,0.00020742,2]
[386551844,1758382239482,-500.0,0.00020742,2]
[386551845,1758382239491,-480.0,0.00020742,2]
[386551846,1758382239501,-480.0,0.00020742,2]
[386551847,1758382239510,-480.0,0.00020742,2]
[386551848,1758382239520,-2156.98,0.00020742,2]
[386551849,1758382239529,-480.0,0.00020742,2]
[386551850,1758382239539,-480.0,0.00020742,2]
[386551851,1758382239548,-480.0,0.00020742,2]
[386551852,1758382239560,-497.51,0.00020742,2]
[386551853,1758382239569,-155.0,0.00020744,2]
[386551854,1758382239578,-480.0,0.00020744,2]
[386551855,1758382239589,-500.0,0.00020744,2]
[386551856,1758382239598,-480.0,0.00020744,2]
[386551857,1758382239607,-480.0,0.00020744,2]
[386551858,1758382239617,-509.53,0.00020744,2]
[386551859,1758382239627,-480.0,0.00020744,2]
[386551860,1758382239637,-139.76013538,0.00020745,2]
[386551861,1758382239660,-340.23986462,0.00020745,2]
[386551862,1758382239670,-168.59857579,0.00020745,2]
[386551939,1758382241273,-212.3,0.00020738,2]
[386551940,1758382241283,-480.0,0.00020739,2]
[386551941,1758382241292,-480.0,0.00020745,2]
[386551942,1758382241363,-480.0,0.00020745,2]
[386551943,1758382241373,-480.0,0.00020745,2]
[386551944,1758382241382,-485.36505383,0.00020745,2]
[386551945,1758382241391,-677.05,0.00020745,2]
[386551946,1758382241401,-480.0,0.00020745,2]
[386551947,1758382241410,-480.0,0.00020745,2]
[386551948,1758382241419,-480.0,0.00020745,2]
[386551949,1758382241428,-482.5342061,0.00020745,2]
[386551950,1758382241437,-480.0,0.00020745,2]
[386551951,1758382241446,-485.42354342,0.00020745,2]
[386551952,1758382241455,-483.47332138,0.00020745,2]
[386551953,1758382241464,-480.0,0.00020745,2]
[386551954,1758382241474,-674.62,0.00020745,2]
[386551955,1758382241483,-480.0,0.00020745,2]
[386551956,1758382241493,-480.0,0.00020745,2]
[386551957,1758382241502,-480.0,0.00020745,2]
[386551958,1758382241511,-481.5105484,0.00020745,2]
[386551959,1758382241520,-480.0,0.00020745,2]
[386551960,1758382241529,-480.0,0.00020745,2]
[386551961,1758382241539,-480.0,0.00020745,2]
[386551962,1758382241548,-500.0,0.00020745,2]
[386551963,1758382241558,-1175.58,0.00020745,2]
[386551964,1758382241567,-480.0,0.00020745,2]
[386551965,1758382241576,-480.0,0.00020745,2]
[386551966,1758382241585,-480.0,0.00020745,2]
[386551967,1758382241594,-480.0,0.00020745,2]
[386551968,1758382241604,-480.0,0.00020745,2]
[386551969,1758382241613,-483.64224505,0.00020745,2]
[386551970,1758382241623,-480.0,0.00020745,2]
[386551971,1758382241632,-480.0,0.00020745,2]
[386551972,1758382241641,-480.0,0.00020745,2]
[386551973,1758382241650,-492.42338486,0.00020745,2]
[386551974,1758382241659,-3256.60789892,0.00020745,2]
[386551975,1758382241671,-1589.97210108,0.00020745,2]
[386551976,1758382241680,-480.0,0.00020745,2]
[386551977,1758382241689,-480.0,0.00020745,2]
[386551978,1758382241698,-382.77071286,0.00020745,2]
[386551979,1758382241708,-422.43791667,0.00020745,2]
[386551992,1758382243866,-446.26189751,0.00020728,2]
[386551993,1758382243877,-296.7108934,0.00020728,2]
[386551994,1758382243890,-474.75904909,0.00020739,2]
[386552011,1758382247680,-500.0,0.00020726,2]
[386552012,1758382247690,-500.0,0.00020726,2]
[386552013,1758382247700,-443.99591055,0.00020726,2]
[386552014,1758382247710,-480.0,0.00020728,2]
[386552015,1758382247719,-2547.47,0.00020732,2]
[386552016,1758382247729,-5.24095091,0.00020739,2]
[386552017,1758382247738,-480.0,0.00020742,2]
[386552018,1758382247747,-57.56208333,0.00020745,2]
[386552019,1758382247757,-480.0,0.00020745,2]
[386552020,1758382247766,-890.61,0.00020745,2]
[386552021,1758382247775,-500.0,0.00020759,2]
[386552022,1758382247784,-500.0,0.00020773,2]
[386552023,1758382247890,-164.67598341,0.00020773,2]
[386552024,1758382247899,-500.0,0.00020779,2]
[386552025,1758382247909,-600.96,0.00020779,2]
[386552026,1758382247917,-480.0,0.0002078,2]
[386552027,1758382247927,-480.0,0.0002078,2]
[386552028,1758382247937,-480.0,0.0002078,2]
[386552029,1758382247946,-480.0,0.0002078,2]
[386552030,1758382247956,-480.0,0.0002078,2]
[386552031,1758382247966,-480.0,0.0002078,2]
[386552032,1758382247975,-480.0,0.0002078,2]
[386552033,1758382247984,-480.0,0.0002078,2]
[386552034,1758382247993,-480.0,0.0002078,2]
[386552035,1758382248002,-480.0,0.0002078,2]
[386552036,1758382248011,-480.0,0.0002078,2]
[386552037,1758382248020,-480.0,0.0002078,2]
[386552038,1758382248029,-482.90839945,0.0002078,2]
[386552039,1758382248039,-485.036953,0.0002078,2]
[386552040,1758382248049,-480.0,0.0002078,2]
[386552041,1758382248059,-480.0,0.0002078,2]
[386552042,1758382248069,-480.0,0.0002078,2]
[386552043,1758382248079,-480.0,0.0002078,2]
[386552044,1758382248088,-480.0,0.0002078,2]
[386552045,1758382248097,-500.0,0.0002078,2]
[386552046,1758382248107,-480.0,0.0002078,2]
[386552047,1758382248117,-484.28725692,0.0002078,2]
[386552048,1758382248126,-480.0,0.0002078,2]
[386552049,1758382248136,-480.0,0.0002078,2]
[386552050,1758382248145,-492.64487961,0.0002078,2]
[386552051,1758382248154,-480.0,0.0002078,2]
[386552052,1758382248164,-480.0,0.0002078,2]
[386552053,1758382248173,-492.44102842,0.0002078,2]
[386552054,1758382248182,-480.0,0.0002078,2]
[386552055,1758382248192,-480.0,0.0002078,2]
[386552056,1758382248201,-480.0,0.0002078,2]
[386552057,1758382248211,-480.0,0.0002078,2]
[386552058,1758382248221,-480.0,0.0002078,2]
[386552059,1758382248230,-480.0,0.0002078,2]
[386552060,1758382248240,-480.0,0.0002078,2]
[386552061,1758382248249,-487.20423393,0.0002078,2]
[386552062,1758382248260,-480.0,0.0002078,2]
[386552063,1758382248269,-480.0,0.0002078,2]
[386552064,1758382248282,-482.33117212,0.0002078,2]
[386552065,1758382248292,-481.8233712,0.0002078,2]
[386552066,1758382248301,-480.0,0.0002078,2]
[386552067,1758382248311,-480.0,0.0002078,2]
[386552068,1758382248321,-482.26736742,0.0002078,2]
[386552069,1758382248331,-480.0,0.0002078,2]
[386552070,1758382248341,-480.0,0.0002078,2]
[386552071,1758382248350,-480.0,0.0002078,2]
[386552072,1758382248360,-480.0,0.0002078,2]
[386552073,1758382248369,-480.0,0.0002078,2]
[386552074,1758382248379,-480.0,0.0002078,2]
[386552075,1758382248388,-471.31871646,0.0002078,2]
[386552076,1758382248398,-480.0,0.0002078,2]
[386552077,1758382248408,-480.0,0.0002078,2]
[386552078,1758382248417,-575.77,0.0002078,2]
[386552079,1758382248427,-480.0,0.0002078,2]
[386552080,1758382248436,-480.0,0.0002078,2]
[386552081,1758382248446,-480.0,0.0002078,2]
[386552082,1758382248456,-480.0,0.0002078,2]
[386552083,1758382248466,-480.0,0.0002078,2]
[386552084,1758382248476,-480.0,0.0002078,2]
[386552085,1758382248485,-480.0,0.0002078,2]
[386552086,1758382248496,-480.0,0.0002078,2]
[386552087,1758382248505,-480.0,0.0002078,2]
[386552088,1758382248515,-480.0,0.0002078,2]
[386552089,1758382248524,-316.20396491,0.0002078,2]
[386552090,1758382248533,-480.0,0.0002078,2]
[386552091,1758382248543,-480.0,0.0002078,2]
[386552092,1758382248552,-1724.35,0.00020781,2]
[386552093,1758382248562,-480.0,0.00020781,2]
[386552094,1758382248572,-8694.15263645,0.00020781,2]
[386552095,1758382257969,207.31,0.00019404,2]
[386552096,1758382258585,414.63,0.00020328,2]
[386552098,1758382351424,199.89,0.00019211,2]
[386552099,1758382352096,399.78,0.00020126,2]
[386552100,1758382423139,1932.81543924,0.000199,2]
[386552101,1758382440459,192.26,0.00019229,2]
[386552102,1758382441105,384.51,0.00020144,2]
[386552103,1758382455324,172.802412,0.00019733,2]
[386552107,1758382529879,184.92,0.00019212,2]
[386552108,1758382530407,369.83,0.00020127,2]
[386552110,1758382605778,1980.73040348,0.000199,2]
[386552111,1758382616904,177.86,0.00019221,2]
[386552112,1758382617377,355.71,0.00020137,2]
[386552114,1758382703763,171.06,0.00019287,2]
[386552115,1758382704316,342.13,0.00020206,2]
[386552118,1758382788189,2025.73656199,0.000199,2]
[386552119,1758382801030,300.0,0.00027397,120]
[386552120,1758382802280,164.53,0.00019275,2]
[386552121,1758382803371,323.50518329,0.00020193,2]
[386552122,1758382803489,5.56481671,0.00020193,2]
[386552124,1758382816706,9994.44518329,0.00019727,2]
[386552125,1758382816805,5.55481671,0.00019727,2]
[386552126,1758382890488,158.25,0.00019215,2]
[386552127,1758382891019,316.5,0.0002013,2]
[386552136,1758382971301,2058.13946457,0.000199,2]
[386552137,1758382972648,247.0321659,0.000201,2]
[386552138,1758382972737,252.9678341,0.000201,2]
[386552139,1758382981804,152.21,0.00019213,2]
[386552140,1758382982331,304.42,0.00020128,2]
[386552147,1758383045199,-479.91456562,0.00020628,2]
[386552148,1758383047737,-1.46672806,0.00020628,2]
[386552149,1758383047759,-178.58001958,0.00020629,2]
[386552150,1758383047782,-47.80380467,0.00020633,2]
[386552151,1758383056141,-130.7762149,0.00020633,2]
[386552152,1758383056164,-69.15866717,0.00020637,2]
[386552155,1758383067741,-976.00652295,0.00020637,2]
[386552156,1758383067864,-1854.48611268,0.00020638,2]
[386552157,1758383067980,-300.0,0.00020724,2]
[386552158,1758383071647,155.4,0.00019273,2]
[386552159,1758383072275,310.81,0.0002019,2]
[386552160,1758383075499,500.0,0.00020724,2]
[386552161,1758383075603,500.0,0.00020724,2]
[386552162,1758383075713,500.0,0.00020724,2]
[386552163,1758383075826,500.0,0.00020724,2]
[386552164,1758383075935,500.0,0.00020724,2]
[386552165,1758383076045,500.0,0.00020724,2]
[386552166,1758383076150,272.81472874,0.00020724,2]
[386552167,1758383077420,-316.55137993,0.00020724,2]
[386552168,1758383077521,-500.0,0.00020724,2]
[386552169,1758383077630,-500.0,0.00020724,2]
[386552170,1758383077736,-500.0,0.00020724,2]
[386552171,1758383087412,-500.0,0.00020724,2]
[386552172,1758383087498,-500.0,0.00020724,2]
[386552180,1758383115062,1200.0,0.00020724,2]
[386552190,1758383153589,2079.4695252,0.000199,2]
[386552191,1758383160958,153.13,0.00019432,2]
[386552192,1758383162251,480.0,0.00020724,2]
[386552193,1758383167638,-312.38332826,0.00020725,2]
[386552194,1758383167739,-207.69762538,0.00020725,2]
[386552195,1758383167838,-480.0,0.00020726,2]
[386552196,1758383167938,-488.46,0.00020726,2]
[386552197,1758383168042,-480.0,0.00020726,2]
[386552198,1758383168362,-1583.68,0.00020726,2]
[386552199,1758383168465,-480.0,0.00020726,2]
[386552200,1758383168565,-480.0,0.00020726,2]
[386552201,1758383169686,306.27,0.00020358,2]
[386552202,1758383177665,-500.0,0.00020724,2]
[386552203,1758383177771,-1207.83,0.00020726,2]
[386552204,1758383177876,-223.68,0.00020726,2]
[386552205,1758383177978,-1135.77,0.00020726,2]
[386552206,1758383178082,-480.0,0.00020726,2]
[386552207,1758383178184,-480.0,0.00020726,2]
[386552208,1758383178284,-576.33,0.00020726,2]
[386552209,1758383178388,-312.79,0.00020726,2]
[386552210,1758383245104,-530.25768715,0.00020628,2]
[386552211,1758383245126,-300.0,0.00020725,2]
[386552212,1758383245153,-454.37401207,0.00020726,2]
[386552213,1758383245175,-167.21,0.00020726,2]
[386552214,1758383245197,-9.13214886,0.00020726,2]
[386552215,1758383266998,176.83,0.00019291,2]
[386552216,1758383267584,353.66,0.00020209,2]
[386552218,1758383331715,-1236.32407512,0.00020637,2]
[386552219,1758383331820,-836.13215208,0.00020638,2]
[386552220,1758383331941,-500.0,0.00020725,2]
[386552221,1758383332048,-1494.99,0.00020726,2]
[386552222,1758383332159,-480.0,0.00020726,2]
[386552223,1758383332264,-425.1175456,0.00020726,2]
[386552224,1758383338031,-54.8824544,0.00020726,2]
[386552225,1758383338131,-578.53,0.00020726,2]
[386552226,1758383338230,-1517.69,0.00020726,2]
[386552227,1758383338331,-873.19,0.00020726,2]
[386552228,1758383338432,-432.0,0.00020726,2]
[386552229,1758383338645,-480.0,0.00020726,2]
[386552230,1758383338737,-969.9250912,0.00020726,2]
[386552231,1758383339436,2010.53885663,0.000199,2]
[386552232,1758383348174,-187.5749088,0.00020726,2]
[386552233,1758383348272,-480.0,0.00020726,2]
[386552234,1758383348374,-1311.61,0.00020726,2]
[386552235,1758383348481,-548.48,0.00020726,2]
[386552236,1758383348585,-480.0,0.00020726,2]
[386552237,1758383348698,-480.0,0.00020726,2]
[386552238,1758383348804,-480.0,0.00020726,2]
[386552239,1758383348910,-480.0,0.00020726,2]
[386552240,1758383349010,-188.9801824,0.00020726,2]
[386552241,1758383350915,174.955181,0.00019727,2]
[386552242,1758383362093,170.08,0.00019365,2]
[386552243,1758383362560,340.16,0.00020287,2]
[386552244,1758383363522,224.27991672,0.00019727,2]
[386552245,1758383363615,775.87648708,0.00019727,2]
[386552305,1758383432926,-480.0,0.00020724,2]
[386552307,1758383432936,-480.0,0.00020724,2]
[386552309,1758383432945,-259.83735702,0.00020725,2]
[386552311,1758383432955,-7.89589721,0.00020725,2]
[386552313,1758383432967,-1192.10410279,0.00020725,2]
[386552315,1758383432976,-500.0,0.00020725,2]
[386552317,1758383432986,-160.0,0.00020726,2]
[386552319,1758383432995,-726.7198176,0.00020726,2]
[386552321,1758383433005,-470.86785114,0.00020726,2]
[386552323,1758383433014,-618.36,0.00020726,2]
[386552325,1758383433024,-1211.66,0.00020726,2]
[386552328,1758383433033,-558.33,0.00020726,2]
[386552330,1758383433043,-480.0,0.00020726,2]
[386552331,1758383433052,-480.0,0.00020726,2]
[386552333,1758383433062,-33.36625907,0.00020726,2]
[386552336,1758383433073,-272.26674577,0.00020726,2]
[386552352,1758383433168,-248.78699516,0.00020726,2]
[386552356,1758383433178,-523.19,0.00020726,2]
[386552359,1758383433189,-836.81,0.00020726,2]
[386552362,1758383433198,-480.0,0.00020726,2]
[386552364,1758383433208,-1196.22,0.00020726,2]
[386552366,1758383433218,-2498.87,0.00020726,2]
[386552368,1758383433227,-480.0,0.00020726,2]
[386552370,1758383433236,-525.63,0.00020726,2]
[386552372,1758383433246,-12742.29058629,0.00020726,2]
[386552457,1758383438718,-218.66832978,0.00020725,2]
[386552458,1758383438731,-480.0,0.00020726,2]
[386552459,1758383438741,-412.24986416,0.00020726,2]
[386552460,1758383438752,-2320.95596561,0.00020726,2]
[386552461,1758383438764,-594.98404894,0.00020726,2]
[386552463,1758383438775,-561.84778779,0.00020726,2]
[386552465,1758383438787,-1192.07922957,0.00020726,2]
[386552467,1758383438799,-1050.06149173,0.00020726,2]
[386552468,1758383438810,-516.76249321,0.00020726,2]
[386552469,1758383438945,-6500.96824866,0.00020726,2]
[386552470,1758383438955,-1852.71,0.00020727,3]
[386552471,1758383438966,-926.35,0.00020727,3]
[386552472,1758383438975,-463.18,0.00020727,3]
[386552473,1758383438984,-231.59,0.00020727,3]
[386552474,1758383439091,-694.79,0.00020727,3]
[386552475,1758383439106,-2996.45,0.00020727,10]
[386552476,1758383439115,-480.0,0.00020727,2]
[386552477,1758383439125,-556.06,0.00020727,2]
[386552478,1758383439134,-483.152879,0.00020727,2]
[386552479,1758383439143,-234.87339668,0.00020727,2]
[386552480,1758383439155,-841.06660332,0.00020727,2]
[386552481,1758383439164,-547.96,0.00020727,2]
[386552482,1758383439173,-499.24396821,0.00020727,2]
[386552489,1758383441295,-0.05680693,0.00020726,2]
[386552490,1758383441472,-479.94319307,0.00020726,2]
[386552491,1758383441482,-480.0,0.00020726,2]
[386552492,1758383441491,-3.04603179,0.00020727,2]
[386552493,1758383441500,-480.0,0.00020727,2]
[386552494,1758383441510,-577.28,0.00020727,2]
[386552495,1758383441519,-480.0,0.00020727,2]
[386552496,1758383441529,-480.0,0.00020727,2]
[386552497,1758383441539,-1493.51,0.00020727,2]
[386552498,1758383441548,-480.0,0.00020728,2]
[386552499,1758383441558,-158.65051519,0.00020728,2]
[386552533,1758383446902,-639.16788215,0.00020726,2]
[386552534,1758383449931,163.59,0.00019214,2]
[386552535,1758383450972,327.17,0.00020129,2]
[386552536,1758383460016,500.38217924,0.0002,2]
[386552537,1758383527304,2105.84823404,0.000199,2]